Cogmind - Beta 16.1 @@@ ROGUE MODE // 2026.03.07 @ 00:17:24 Player: star Result: Destroyed by G-50 Soldier with Heavy Laser Performance ------------- Evolutions (5) 2500 Regions Visited (5) 1000 Robots Destroyed (73) 365 Value Destroyed (3007) 3007 Prototype IDs (17) 340 Alien Tech Used (0) 0 Bonus (1961) 1961 TOTAL SCORE: 9173 Bonus ------- High Alert Combat Kills 786 Follower Combat Kills 375 Registered with UFD 300 Met Optimus in HQ 500 Cogmind --------- Core Integrity 0/1000 Matter 300/300 Energy 100/100 System Corruption 36% Temperature Cool (9) Movement Walking (190) Ox1 Location -5/Upper Caves Parts ------- > --- POWER (2) -------- (None) > --- PROPULSION (5) --- Armored Leg > --- UTILITY (6) ------ Large Storage Unit Experimental Signal Interpreter Advanced Targeting Computer Melee Analysis Suite Improved Launcher Guidance Computer Corruption Screen > --- WEAPON (4) ------- Chainsword > --- INVENTORY (15) --- Advanced Signal Interpreter Precision Matter Filter Makeshift Thermal Plating Improved Component Analysis Suite Improved Recalibrator Medium Laser Heavy Proton Missile Launcher Improved Remote Datajack Improved Plasma Cutter CPS Tube (2) Peak State ------------ > --- POWER ------------ Neutrino Core Micro Fission Core > --- PROPULSION ------- Medium Treads Medium Treads Armored Leg Enhanced Armored Leg Enhanced Armored Leg > --- UTILITY ---------- Scrap Suit Large Storage Unit Experimental Signal Interpreter Advanced Targeting Computer Improved Component Analysis Suite > --- WEAPON ----------- Wave Gun Hypervelocity Coil Gun Enhanced Coil Gun Kinetic Spear > --- INVENTORY -------- Armored Leg Scrap Suit Improved Launcher Guidance Computer Precision Matter Filter Corruption Screen Improved Recalibrator Medium Laser Subdweller Shrapnel Launcher Improved Remote Datajack Improved Plasma Cutter CPS Tube CPS Tube Chainsword [Rating: 97] Favorites ----------- Power Micro Fission Core Engine Ion Engine Power Core Micro Fission Core Propulsion Medium Treads Treads Medium Treads Leg Armored Leg Utility Large Storage Unit Device Scrap Suit Storage Large Storage Unit Processor Experimental Signal Interpreter Protection Improved Propulsion Shielding Weapon Makeshift Laser Energy Gun Makeshift Laser Ballistic Gun Enhanced Coil Gun Ballistic Cannon Advanced Assault Cannon Launcher Subdweller Shrapnel Launcher Special Weapon Improved Remote Datajack Slashing Weapon Scythe Piercing Weapon Kinetic Spear Build | -11 -10 -10 -7 -5 -5 ------- Run | Yrd Mat Sub Scr Fac Upp Slots Evolved 10 | . . . . 10 . Power 1 | . . . . 1 . Propulsion 3 | . . . . 3 . Utility 4 | . . . . 4 . Weapon 2 | . . . . 2 . Parts Attached 60 | 6 1 8 4 35 6 Power 7 | 1 . 2 . 4 . Engine 3 | 1 . 2 . . . Core 4 | . . . . 4 . Reactor . | . . . . . . Propulsion 15 | 2 . 1 1 10 1 Treads 8 | 2 . 1 1 3 1 Leg 7 | . . . . 7 . Wheel . | . . . . . . Hover . | . . . . . . Flight . | . . . . . . Utility 17 | 1 1 1 2 9 3 Device 6 | . . 1 . 5 . Storage 2 | 1 . . 1 . . Processor 7 | . . . . 4 3 Hackware . | . . . . . . Protection 2 | . 1 . 1 . . Artifact . | . . . . . . Weapon 21 | 2 . 4 1 12 2 Energy Gun 8 | 2 . 2 1 3 . Energy Cannon . | . . . . . . Ballistic Gun 3 | . . . . 3 . Ballistic Cannon 1 | . . . . 1 . Launcher 4 | . . 2 . 2 . Special Weapon 2 | . . . . 1 1 Impact Weapon . | . . . . . . Slashing Weapon 2 | . . . . 1 1 Piercing Weapon 1 | . . . . 1 . Special Melee Weapon . | . . . . . . Unidentified Prototypes 3 | . . . . 3 . Corrupted Parts 3 | . . 1 . 2 . System Corruption 15 | . . 1 . 14 . Parts Lost 28 | . . 1 . 25 2 Power 4 | . . 1 . 3 . Propulsion 9 | . . . . 7 2 Utility 2 | . . . . 2 . Weapon 13 | . . . . 13 . Highest Loss Streak 6 | . . 1 . 6 1 To Critical Strikes . | . . . . . . Average Backups 10 | 1 2 4 8 12 12 Power . | . 1 1 . . . Propulsion . | . . . . . 1 Utility 2 | . . . 1 4 4 Weapon 4 | . 1 2 5 4 2 Tool/Special . | . . . . . . Unused Backups 8 | . . . 1 . 7 Power . | . . . . . . Propulsion . | . . . . . . Utility 4 | . . . . . 4 Weapon 1 | . . . 1 . . Tool/Special 3 | . . . . . 3 Average Slot Usage (%) 87 | . 98 94 94 86 40 Engine 5 | . 14 12 14 . . Core 4 | . . . . 9 . Treads 17 | . 28 28 28 11 1 Leg 7 | . . . . 12 4 Device 6 | . . 7 . 10 . Storage 8 | . 14 14 14 5 5 Processor 7 | . . . . 10 25 Protection 3 | . 12 3 8 . . Energy Gun 15 | . 28 26 27 7 . Ballistic Gun 3 | . . . . 6 . Piercing Weapon 1 | . . . . 2 . Peak Build Rating 97 | 6 7 14 22 97 48 Average Rating 51 | 5 6 10 17 80 36 On Entrance 12 | . 6 7 10 22 30 Avg Prop Armor Cover (%) 8 | . . . . 8 16 Naked Turns . | . . . . . . Heaviest Build 65 | 12 13 22 32 65 23 Greatest Support 75 | 40 40 40 48 75 28 Greatest Overweight (x) 3 | . . . . 3 1 Average Overweight (x) . | . . . . . . Largest Inventory Capacity 15 | 8 8 8 15 15 15 Average Capacity 12 | 7 8 8 9 15 15 Most Carried 15 | 2 3 8 14 15 14 Average Carried 10 | 1 2 4 8 13 12 Final Capacity 15 | 8 8 8 15 15 15 Final Carried 14 | 2 3 8 14 12 10 Scrap Suit Usage (%) 50 | . . . . 93 . Parts Cannibalized 21 | . . . . 21 . Class Distribution -------------------- 50% | Mutant 27% | Skirmisher 11% | Commander-Skirmisher 6% | Scavenger-Gunner Dominant Class ---------------- Mutant | -10/Materials Mutant | -10/Subcaves Mutant | -7/Scraptown Skirmisher | -5/Factory Mutant | -5/Upper Caves Resources | -11 -10 -10 -7 -5 -5 ----------- Run | Yrd Mat Sub Scr Fac Upp Matter Collected 2205 | 169 . 206 100 1584 146 Remotely . | . . . . . . Salvage Created 3903 | . . 164 . 3598 141 Parts 177 | . . 14 . 155 8 Haulers Intercepted 5 | . . . . 5 . Recyclers Shooed 9 | . . . . 9 . Parts Field Recycled . | . . . . . . Retrieved Matter . | . . . . . . Parts Self-Destructed 11 | . . 4 . . 7 Prevented 1 | . . 1 . . . Parts Restored . | . . . . . . Kills | -11 -10 -10 -7 -5 -5 ------- Run | Yrd Mat Sub Scr Fac Upp Combat Hostiles Destroyed 53 | . . 7 . 44 2 Melee 5 | . . . . 3 2 Guns 20 | . . 2 . 18 . Cannons 1 | . . . . 1 . AOE 22 | . . 5 . 17 . Classes Destroyed 12 | . . 3 . 9 . Worker 6 | . . . . 6 . Builder 4 | . . . . 4 . Tunneler 1 | . . . . 1 . Hauler 5 | . . . . 5 . Recycler 3 | . . . . 3 . Mechanic 1 | . . . . 1 . Swarmer 11 | . . 3 . 8 . Grunt 20 | . . . . 18 2 Brawler 4 | . . . . 4 . Sentry 4 | . . 1 . 3 . Programmer 11 | . . . . 11 . Subdweller 3 | . . 3 . . . Best Kill Streak 13 | . . 4 . 13 1 Combat Bots Only 10 | . . 4 . 10 1 Max Kills in Single Turn 4 | . . 2 . 4 1 Gunslinging . | . . . . . . Exploded 4 | . . 2 . 4 . Melee 1 | . . . . 1 1 Uniques/NPCs Destroyed . | . . . . . . Combat | -11 -10 -10 -7 -5 -5 -------- Run | Yrd Mat Sub Scr Fac Upp Hostile Shots Fired 440 | . . 31 . 376 33 Missed 150 | . . 11 . 131 8 Hits 290 | . . 20 . 245 25 Melee 4 | . . . . 4 . Projectile 286 | . . 20 . 241 25 AOE 1 | . . . . 1 . Critical Strikes 13 | . . . . 13 . Part Disruptions 1 | . . . . 1 . Damage Taken 6525 | . . 343 . 5692 490 Core 1071 | . . 60 . 811 200 Absorbed by Shields . | . . . . . . Redirected to Shielding 80 | . . . . 80 . Regen/Repaired (Parts) 194 | . . . . 194 . Core Remaining (%) 88 | 100 . . 76 . . Volleys Fired 149 | . . 14 . 133 2 Largest 4 | . . 2 . 4 1 Hottest 200 | . . 90 . 200 . Shots Fired 322 | . . 24 . 296 2 Gun 274 | . . 16 . 258 . Cannon 7 | . . . . 7 . Launcher 32 | . . 8 . 24 . Special 9 | . . . . 7 2 Kinetic 165 | . . 4 . 161 . Thermal 107 | . . 6 . 101 . Explosive 4 | . . 4 . . . Electromagnetic 37 | . . 10 . 27 . Robot Hit Streak 16 | . . 4 . 16 5 Robot Miss Streak 3 | . . 1 . 3 . Penetration Max 1 | . . . . 1 . Secondary Targets 1 | . . . . 1 . Max Gunslinging Chain 1 | . . . . 1 . Shots Hit Robots 242 | . . 17 . 211 14 Core Hits 155 | . . 9 . 141 5 Critical Kills 3 | . . . . 3 . Critical Parts Destroyed 12 | . . . . 12 . Critical Strikes 29 | . . . . 27 2 Burn 8 | . . . . 8 . Destroy 15 | . . . . 15 . Sever 5 | . . . . 3 2 Impale 1 | . . . . 1 . Melee Attacks 39 | . . . . 22 17 Impact . | . . . . . . Slashing 32 | . . . . 15 17 Piercing 7 | . . . . 7 . Sneak Attacks 5 | . . . . 5 . Combat Hostiles . | . . . . . . Follow-up Attacks . | . . . . . . Damage Inflicted 9718 | . . 625 . 8648 445 Guns 3962 | . . 138 . 3824 . Cannons 198 | . . . . 198 . Explosions 4263 | . . 487 . 3776 . Melee 1295 | . . . . 850 445 Ramming . | . . . . . . Kinetic 3756 | . . 266 . 3490 . Thermal 1916 | . . 74 . 1842 . Explosive 603 | . . 221 . 382 . Electromagnetic 2148 | . . 64 . 2084 . Impact . | . . . . . . Slashing 906 | . . . . 461 445 Piercing 389 | . . . . 389 . Highest Corruption 36 | . . 1 . 36 36 Average Corruption 15 | . . 1 . 14 36 Corruption Purged . | . . . . . . Corruption Blocked . | . . . . . . Effects 157 | . . 1 . 139 17 Message Errors 29 | . . 1 . 24 4 Matter Fused 35 | . . . . 30 5 Heat Flow Errors 23 | . . . . 21 2 Energy Discharges 20 | . . . . 19 1 Parts Fused 1 | . . . . 1 . Data Loss (minor) 17 | . . . . 14 3 Data Loss (major) 9 | . . . . 7 2 Misfires 9 | . . . . 9 . Alerts 2 | . . . . 2 . Misdirections 3 | . . . . 3 . Weapon Failures 9 | . . . . 9 . Overload Shots 2 | . . . . 2 . Overflow Damage 214 | . . 27 . 184 3 Projectiles 18 | . . . . 18 . Explosions 90 | . . 27 . 63 . Melee 106 | . . . . 103 3 Knockbacks 3 | . . . . 3 . Impact . | . . . . . . Kinetic 3 | . . . . 3 . Secondary . | . . . . . . Self-Inflicted Damage 348 | . . 40 . 308 . Shots 14 | . . 2 . 12 . Rammed . | . . . . . . Targets Rammed . | . . . . . . Kicked . | . . . . . . Crushed . | . . . . . . Highest Temperature 523 | . . . . 523 223 Average Temperature 143 | . . . . 144 109 Received Heat Transfer 1563 | . . 48 . 1329 186 Effects 19 | . . . . 19 . Shutdowns 7 | . . . . 7 . Energy Bleed 2 | . . . . 2 . Interference 8 | . . . . 8 . Short Circuit 1 | . . . . 1 . Damage (core) 1 | . . . . 1 . Siege Activations . | . . . . . . Martial Activations . | . . . . . . Shielding Activations . | . . . . . . Robots Disrupted . | . . . . . . Combat Hostiles . | . . . . . . Robots Corrupted 4 | . . . . 4 . Combat Hostiles 4 | . . . . 4 . Parts Fried 7 | . . . . 7 . Impact Corruptions . | . . . . . . Robots Melted 1 | . . . . 1 . Combat Hostiles 1 | . . . . 1 . Parts Melted 11 | . . . . 11 . Heat Transferred 3847 | . . 222 . 3625 . Parts Sabotaged . | . . . . . . Parts Stolen . | . . . . . . Parts Stripped . | . . . . . . Power Chain Reactions 5 | . . . . 5 . Alert | -11 -10 -10 -7 -5 -5 ------- Run | Yrd Mat Sub Scr Fac Upp Maximum Alert Level 4 | . . . . 4 . Low Security (%) 42 | 100 100 . . 37 . Level 1 5 | . . . . 6 . Level 2 19 | . . . . 21 . Level 3 25 | . . . . 27 . Level 4 6 | . . . . 6 . Level 5 . | . . . . . . High Security . | . . . . . . Max Security . | . . . . . . Peak Influence 1409 | . . . . 1409 . Initial . | . . . . . . Average 440 | . . . . 479 . Influence Increases 2373 | . . 90 . 2233 50 Destroy 0b10 Robot/C 1160 | . . 80 . 1040 40 Destroy 0b10 Robot/NC 115 | . . . . 115 . Destroy Leader 232 | . . 10 . 212 10 Allied During Kill 118 | . . . . 118 . Successful Hack 4 | . . . . 4 . Disable Machine 240 | . . . . 240 . Destroy Structure 384 | . . . . 384 . Partial Spotted 15 | . . . . 15 . Lose Combat Pursuer 105 | . . . . 105 . Influence Decreases 1643 | . . 36 54 867 686 Entered New Map 560 | . . . 54 . 506 Time Decay 713 | . . 36 . 517 160 Lost Part 230 | . . . . 210 20 Lost Ally 140 | . . . . 140 . Squads Dispatched 19 | . . . . 19 . Investigation 1 | . . . . 1 . Extermination 7 | . . . . 7 . Reinforcement 6 | . . . . 6 . Assault 5 | . . . . 5 . Garrison . | . . . . . . Intercept . | . . . . . . Searches Triggered . | . . . . . . Construction Impeded 5 | . . . . 5 . Haulers Reinforced . | . . . . . . Active Scanning Responses . | . . . . . . Cargo Convoy Interrupts 1 | . . . . 1 . Stealth | -11 -10 -10 -7 -5 -5 --------- Run | Yrd Mat Sub Scr Fac Upp Distress Signals 1 | . . . . 1 . Communications Jammed . | . . . . . . Distress Signals . | . . . . . . Times Spotted 82 | . . 9 . 69 4 Peak Tracking Total 10 | . . 4 . 10 4 Tactical Retreats 6 | . . . . 6 . Traps | -11 -10 -10 -7 -5 -5 ------- Run | Yrd Mat Sub Scr Fac Upp Traps Triggered 1 | . . . . 1 . Indirectly . | . . . . . . Trap Hack Attempts . | . . . . . . Triggered . | . . . . . . Disarmed . | . . . . . . Reprogrammed . | . . . . . . Reused . | . . . . . . Traps Extracted . | . . . . . . Installed . | . . . . . . Triggered . | . . . . . . Machines | -11 -10 -10 -7 -5 -5 ---------- Run | Yrd Mat Sub Scr Fac Upp Machines Disabled 16 | . . . . 16 . Max in Single Turn 2 | . . . . 2 . Machines Repaired . | . . . . . . Machines Dismantled . | . . . . . . Machines Sabotaged . | . . . . . . Overloaded Fab Kills . | . . . . . . Hacking | -11 -10 -10 -7 -5 -5 --------- Run | Yrd Mat Sub Scr Fac Upp Machines Accessed 6 | . . . 3 3 . Terminals 1 | . . . . 1 . Fabricators 1 | . . . . 1 . Repair Stations . | . . . . . . Recycling Units 1 | . . . . 1 . Scanalyzers . | . . . . . . Garrison Access . | . . . . . . Total Hacks 11 | . . . 6 5 . Successful 9 | . . . 6 3 . Failed 2 | . . . . 2 . Catastrophic 1 | . . . . 1 . Database Lockouts . | . . . . . . Manual 1 | . . . . 1 . Terminals 1 | . . . . 1 . Fabricators 3 | . . . . 3 . Repair Stations . | . . . . . . Recycling Units 1 | . . . . 1 . Scanalyzers . | . . . . . . Garrison Access . | . . . . . . Terminal Hacks 6 | . . . 6 . . Record 5 | . . . 5 . . Proto ID Catalog 1 | . . . 1 . . Fabricator Hacks 2 | . . . . 2 . Network Status 1 | . . . . 1 . Build 1 | . . . . 1 . Repair Station Hacks . | . . . . . . Recycling Unit Hacks . | . . . . . . Scanalyzer . | . . . . . . Garrison Access Hacks . | . . . . . . Unauthorized Hacks 1 | . . . . 1 . Terminals . | . . . . . . Fabricators . | . . . . . . Repair Stations . | . . . . . . Recycling Units 1 | . . . . 1 . Scrapoids 1 | . . . . 1 . Scanalyzers . | . . . . . . Garrison Access . | . . . . . . Data Cores Recovered . | . . . . . . Used . | . . . . . . Hacking Detections 2 | . . . . 2 . Full Trace Events . | . . . . . . Feedback Events . | . . . . . . Feedback Blocked . | . . . . . . Robot Schematics Acquired . | . . . . . . Robots Built 2 | . . . . 2 . Authchips . | . . . . . . Time 81 | . . . . 81 . Total Robot Build Rating 2 | . . . . 2 . Part Schematics Acquired . | . . . . . . Parts Built . | . . . . . . Authchips . | . . . . . . Time . | . . . . . . Total Part Build Rating . | . . . . . . Part Studies Acquired . | . . . . . . Parts Repaired . | . . . . . . Time . | . . . . . . Parts Recycled . | . . . . . . Recycled Matter . | . . . . . . Retrieved Matter . | . . . . . . Retrieved Components . | . . . . . . Parts Scanalyzed . | . . . . . . Part Schematics Acquired . | . . . . . . Parts Damaged . | . . . . . . Bothacking | -11 -10 -10 -7 -5 -5 ------------ Run | Yrd Mat Sub Scr Fac Upp Used RIF Installer . | . . . . . . Robots Hacked 2 | . . . . 2 . Non-combat . | . . . . . . Combat . | . . . . . . Robot Hacks Applied . | . . . . . . Manual 2 | . . . . 2 . Relay Couplers Released . | . . . . . . Fabnet Peak Effective % . | . . . . . . Robots Rewired . | . . . . . . Allies Hacked . | . . . . . . Hacks Repelled . | . . . . . . Allies | -11 -10 -10 -7 -5 -5 -------- Run | Yrd Mat Sub Scr Fac Upp Total Allies 9 | . . . . 9 . Largest Group 5 | . . . . 5 . Highest-Rated Group 244 | . . . . 244 . Highest-Rated Ally 50 | . . . . 50 . Initial UFD Resources 37 | . . . . 37 34 Total Orders . | . . . . . . Ally Attacks 83 | . . . . 83 . Total Damage 1793 | . . . . 1793 . Kills 11 | . . . . 11 . Allies Corrupted . | . . . . . . Allies Melted . | . . . . . . Intel | -11 -10 -10 -7 -5 -5 ------- Run | Yrd Mat Sub Scr Fac Upp Active Infowar (turns) 2937 | . . 296 . 2641 . Optics 296 | . . 296 . . . Sensors 2641 | . . . . 2641 . Robot Analysis Total . | . . . . . . Derelict Logs Recovered 3 | . . 1 2 . . Drone Launches . | . . . . . . Drone Recoveries . | . . . . . . Exploration | -11 -10 -10 -7 -5 -5 ------------- Run | Yrd Mat Sub Scr Fac Upp Turns Passed 6708 | 72 246 578 1861 3620 331 Spaces Moved 3495 | 43 38 319 1149 1734 212 Core 6 | 6 . . . . . Treads 2636 | 37 38 319 1149 1061 32 Legs 853 | . . . . 673 180 Wheels . | . . . . . . Hover . | . . . . . . Flight . | . . . . . . Fastest Speed 50 | 50 160 160 160 112 120 Average Speed 161 | 144 160 160 160 168 126 Slowest Speed 330 | 160 160 160 160 330 190 Overloaded Moves . | . . . . . . Propulsion Burnouts . | . . . . . . Robots Hopped . | . . . . . . Potential Cave-ins . | . . . . . . Cave-ins Triggered . | . . . . . . Exploration Rate (%) 29 | 3 6 23 75 35 33 Regions Visited 5 Branch Regions 3 Pre-discovered Areas . | . . . . . . Known Exits Taken 1 | . . . . 1 . Unknown Exits Taken 4 | 1 1 1 1 . . Scrap Searched 6 | . . 2 2 . 2 Spaces Dug 24 | . . . . 24 . Terrain Destroyed 249 | . . 64 . 185 . Melee 1 | . . . . 1 . Projectile 49 | . . . . 49 . AOE 199 | . . 64 . 135 . Terrain Rammed . | . . . . . . Walls Destroyed . | . . . . . . Machines Disabled . | . . . . . . Actions | -11 -10 -10 -7 -5 -5 --------- Run | Yrd Mat Sub Scr Fac Upp Total 4213 | 50 223 359 1175 2159 247 Wait 407 | . 184 14 3 200 6 Move 3490 | 42 37 318 1148 1733 212 Hop . | . . . . . . Pick Up 30 | 2 1 3 10 11 3 Fast Attach 24 | 6 1 1 1 13 2 Attach 15 | . . . . 11 4 Detach 4 | . . 1 . 3 . Swap 40 | . . 8 4 27 1 Drop 15 | . . . 9 6 . Fire 149 | . . 14 . 133 2 Melee 39 | . . . . 22 17 Ram . | . . . . . . Kick . | . . . . . . Crush . | . . . . . . Escape Stasis . | . . . . . . Rewire . | . . . . . . Trap . | . . . . . . Miscellaneous . | . . . . . . Route ------- -11/Scrapyard -10/Materials -10/Subcaves (discovered 2 exits: [*Mat] / *Scr) -7/Scraptown -5/Factory (discovered 2 exits: *Fac / *Upp) -5/Upper Caves History --------- Turn | Location | Event 9 | -11/Scrapyard | Discovered new exit (range 16) 73 | -11/Scrapyard | Entered Materials 301 | -10/Materials | Build established: Mutant 311 | -10/Materials | Discovered new exit (range 4) 319 | -10/Materials | Entered Subcaves 320 | -10/Subcaves | Approached by a straggling Scientist 688 | -10/Subcaves | Learned 2 Materials zone layouts 835 | -10/Subcaves | Discovered new exit (range 14) 897 | -10/Subcaves | Entered Scraptown 897 | -7/Scraptown | System corruption cleaned by C-Scrubber 1211 | -7/Scraptown | Visited Cyclists 1305 | -7/Scraptown | Visited Symbiants 1687 | -7/Scraptown | Visited UFD Registry 1687 | -7/Scraptown | Registered with UFD as "Technocutter" 1727 | -7/Scraptown | Visited Assassins FH 1783 | -7/Scraptown | Scanned Subdweller tech in exchange for log data 1788 | -7/Scraptown | Learned Research stockpile data 1789 | -7/Scraptown | Learned location of 2 exits from Lower Caves 1944 | -7/Scraptown | Visited Science Guys 2062 | -7/Scraptown | Visited Curators Association 2088 | -7/Scraptown | Visited Abandonware Association 2110 | -7/Scraptown | Learned abandonware demo "HACKBUD.EXE" 2157 | -7/Scraptown | Visited Supply Room 2193 | -7/Scraptown | Visited Research Penetration Think Tank 2247 | -7/Scraptown | Visited Infowarlord's Domain 2306 | -7/Scraptown | Found Exp. Signal Interpreter 2509 | -7/Scraptown | Visited LU-1G1's Boring Crew 2535 | -7/Scraptown | Visited Scrapoid Research Area 2620 | -7/Scraptown | Met Optimus 2620 | -7/Scraptown | Accepted into 0bPrime 2725 | -7/Scraptown | Found Scrap Suit 2728 | -7/Scraptown | Found Scrap Suit 2753 | -7/Scraptown | Discovered new exit (range 3) 2758 | -7/Scraptown | Entered Factory 2758 | -5/Factory | Evolved 10 slots: Power x1, Propulsion x3, Utility x4, Weapon x2 2758 | -5/Factory | Discovered new exit (range 11) 2858 | -5/Factory | Identified exit to Factory 3382 | -5/Factory | Discovered new exit (range 11) 3440 | -5/Factory | Identified exit to Upper Caves 3536 | -5/Factory | Build established: Skirmisher 4051 | -5/Factory | Cargo convoy interrupted 4094 | -5/Factory | System corruption reached 10% 4252 | -5/Factory | Scrapoid reinforcements arrived 4551 | -5/Factory | Build established: Commander-Skirmisher 4822 | -5/Factory | Spotted B-75 Beast 4824 | -5/Factory | Allies destroyed B-75 Beast 4858 | -5/Factory | First assault squad dispatched 5048 | -5/Factory | Lost 3 allies 5319 | -5/Factory | Fabricated R-06 Scavenger (x2) 5457 | -5/Factory | Build established: Skirmisher 5476 | -5/Factory | Lost 3 allies 6060 | -5/Factory | Build established: Scavenger-Gunner 6189 | -5/Factory | Destroyed 10 combat bots 6194 | -5/Factory | System corruption reached 30% 6282 | -5/Factory | Lost 6 parts (1p1n4w) 6322 | -5/Factory | Core integrity fell below 50% 6368 | -5/Factory | Lost 4 parts (1p2n1w) 6377 | -5/Factory | Core integrity fell below 20% 6378 | -5/Factory | Entered Upper Caves 6514 | -5/Upper Caves | Build established: Mutant 6661 | -5/Upper Caves | Attached CPS modules to G-67 Veteran. 6663 | -5/Upper Caves | Attached CPS modules to G-67 Veteran. 6709 | -5/Upper Caves | Destroyed by G-50 Soldier with Heavy Laser Last Messages --------------- 06661_ CPS modules attach to G-67 Veteran. 06663_ CPS Tube expended. 06663_ CPS modules attach to G-67 Veteran. 06665_ Enh. Armored Leg destroyed. 06670_ G-67 Veteran Flexi-carbon Leg severed. 06672_ OS